[Event "XII Cracow ICC-A 2024"]
[Site "Krakow"]
[Date "2024.06.23"]
[Round "3.1"]
[White "Nurgaliyev, Sauat"]
[Black "Fier, Alexandr"]
[Result "0-1"]
[ECO "B90"]
[WhiteElo "2321"]
[BlackElo "2602"]
[Annotator "TA"]
[PlyCount "116"]
[EventDate "2024.06.20"]
[EventType "swiss"]
[EventCountry "POL"]
[SourceTitle "playchess.com"]
[Source "ChessBase"]
[SourceQuality "1"]
[TimeControl "40/5400+30:1800+30"]

{[%evp 37,116,32,60,66,72,7,126,124,273,272,303,288,310,145,131,26,27,25,10,-29,-22,-43,-31,-33,-33,-31,-34,-39,-25,-27,-22,-37,0,-65,-45,-57,0,0,0,0,0,0,0,0,0,-161,-164,-163,-163,-170,-171,-171,-165,-178,-179,-179,-179,-166,-177,-152,-79,-179,-178,-215,-215,-267,-200,-29962,-29962,-29942,-4518,-5439,-1166,-598,-496,-29976,-29977,-29983,-29975,-29979,-29976]} 1. e4 {[%emt 0:00:43]} c5 {[%emt 0:00:06]} 2. Nf3 {[%emt 0:00:15]} d6 {[%emt 0:00:05]} 3. d4 {[%emt 0:00:07]} cxd4 {[%emt 0:00:03]} 4. Nxd4 {[%emt 0:00:07]} Nf6 {[%emt 0:00:03]} 5. Nc3 {[%emt 0:00:08]} a6 {[%emt 0:00:02]} 6. Bd3 {[%emt 0:00:27]} g6 {[%emt 0:00:05]} 7. f3 {[%emt 0:00:17]} e5 {[%emt 0:00:04]} 8. Nb3 {[%emt 0:03:08]} Be6 {[%emt 0:00:41]} 9. Be3 {[%emt 0:01:19]} Nbd7 {[%emt 0:00:05]} 10. Qd2 {[%emt 0:02:16]} Qc7 {[%emt 0:00:06]} 11. g4 {[%emt 0:07:51]} b5 {[%emt 0:01:27]} 12. g5 {[%emt 0:03:47]} Nh5 {[%emt 0:00:40]} 13. a4 {[%emt 0:06:57]} b4 {[%emt 0:02:46]} 14. Nd5 {[%emt 0:00:06]} Bxd5 {[%emt 0:00:04]} 15. exd5 {[%emt 0:00:05]} Nf4 {[%emt 0:07:03]} 16. Bxf4 {[%emt 0:03:23]} exf4 {[%emt 0:00:05]} 17. Qxf4 {[%emt 0:00:31]} Bg7 {[%emt 0:00:23]} 18. Qe4+ {[%emt 0:02:39]} Kf8 {[%emt 0:00:34]} 19. O-O-O {[%emt 0:00:52]} (19. Qxb4 $2 $19) 19... Nc5 {[%emt 0:01:25]} 20. Nxc5 {[%emt 0:03:19]} (20. Qxb4 Nxb3+ 21. Qxb3 Rb8 $17) 20... Qxc5 {[%emt 0:00:17]} 21. Rhe1 {[%emt 0:05:12]} (21. Rde1 $1 $16) 21... Kg8 {[%emt 0:07:14]} (21... h6 $11 {keeps the balance.}) 22. h4 $16 {[%emt 0:12:18]} a5 {[%emt 0:08:12]} (22... Qd4 $16 23. Qxd4 Bxd4) 23. h5 $1 $18 {[%emt 0:05:25]} gxh5 {[%emt 0:00:39]} 24. Bb5 {[%emt 0:04:15]} Qf2 {[%emt 0:02:43]} 25. Qf5 {[%emt 0:06:26]} (25. f4 $18) 25... Rf8 $16 {[%emt 0:07:02]} 26. Re2 {[%emt 0:04:32]} (26. Kb1 $16 {Threatens to win with Re7.} b3 27. Re2 (27. cxb3 $2 Qxb2#) 27... bxc2+ 28. Rxc2) 26... Qg3 $11 {[%emt 0:00:30]} 27. f4 {[%emt 0:03:51]} h6 $1 {[%emt 0:02:56]} 28. Re7 {[%emt 0:04:44]} Qg4 {[%emt 0:01:32]} 29. Bd7 {[%emt 0:04:07]} Qxf5 {[%emt 0:00:27]} (29... hxg5 {simplifies} 30. fxg5 Qxf5 31. Bxf5 h4) 30. Bxf5 {[%emt 0:00:01]} hxg5 {[%emt 0:00:13]} 31. fxg5 {[%emt 0:00:06]} h4 {[%emt 0:00:14]} 32. Bh3 {[%emt 0:01:50]} Be5 {[%emt 0:02:16]} 33. Rf1 {[%emt 0:03:03]} Kg7 {[%emt 0:01:07]} 34. Ra7 {[%emt 0:02:42]} Rh5 {[%emt 0:00:05]} (34... Kg6 $5) 35. Rf5 {[%emt 0:01:29]} (35. Rxa5 $11 b3 36. Rb5) 35... Kg6 $15 {[%emt 0:00:20]} 36. Rxa5 {[%emt 0:00:55]} Rxg5 {[%emt 0:00:05]} (36... Bd4 $1 $15 37. Rb5 Bc5 38. Rf6+ Kxg5) 37. Rxg5+ $11 {[%emt 0:00:07]} Kxg5 {[%emt 0:00:03]} 38. Rb5 {[%emt 0:00:05]} f5 {[%emt 0:04:51]} 39. Rxb4 f4 {[%emt 0:00:03]} 40. a5 {[%emt 0:02:03]} f3 $1 {[%emt 0:00:11]} 41. a6 $2 {[%emt 0:32:24]} (41. Kd2 $11 {and White stays safe.}) 41... f2 $19 {[%emt 0:30:04]} 42. Bf1 {[%emt 0:00:37]} h3 $1 {[%emt 0:08:04]} ({Not} 42... Bf4+ 43. Kb1 $11) 43. Bxh3 {[%emt 0:05:51] [#]} Rh8 $1 {[%emt 0:00:06]} 44. Bf1 {[%emt 0:00:00]} Rh1 {[%emt 0:00:00]} 45. Kd2 {[%emt 0:00:00]} Rxf1 {[%emt 0:00:00]} 46. Ke2 {[%emt 0:00:00]} Ra1 {[%emt 0:00:00]} 47. Kxf2 {[%emt 0:00:00]} Rxa6 {[%emt 0:00:00]} 48. Ke3 {[%emt 0:00:00] [#]} Kf5 {[%emt 0:00:00]} ({Black should play} 48... Ra1 $1 49. c3 Kf5) 49. Kd3 {[%emt 0:00:00]} (49. Rb8 $17) 49... Ra1 $19 {[%emt 0:00:00]} 50. Rb5 {[%emt 0:00:00]} Rd1+ {[%emt 0:00:00]} 51. Ke3 {[%emt 0:00:00]} Rh1 {[%emt 0:00:00]} 52. c4 $2 {[%emt 0:00:00]} (52. c3 $19) 52... Rh3+ {[%emt 0:00:00]} 53. Kd2 {[%emt 0:00:00]} Bd4 {[%emt 0:00:00]} (53... Rh2+ $142 54. Ke3 Rxb2 (54... Bxb2 55. c5 $15) 55. Kd3 Bh8 56. Ra5 Rb3+ 57. Ke2 Rc3 58. Ra8 Be5 59. c5 Rxc5 60. Ke3 Rxd5 61. Rf8+ Bf6 62. Rf7 Rc5 63. Rf8 d5 64. Ke2 d4 65. Rf7 Rc2+ 66. Kf3 Rh2 67. Rb7 d3 68. Rb1 Rh3+ 69. Kg2 Re3 70. Rf1+ Ke4 71. Rxf6 d2 72. Kf2 d1=Q (72... d1=B 73. Re6+ Kd5 74. Rxe3 $11) 73. Re6+ Kf4 74. Rf6+ Kg5 75. Kxe3 Kxf6 76. Kf2 Kf5 77. Ke3 Ke5 78. Kf2 Kf4 79. Kg2 Qe2+ 80. Kg1 Kg3 81. Kh1 Qh2#) 54. Rb8 {[%emt 0:00:00]} Ke4 {[%emt 0:00:00]} 55. Re8+ {[%emt 0:00:00]} Be5 {[%emt 0:00:00]} 56. Rc8 {[%emt 0:00:00]} (56. Ke2 $19) 56... Rh2+ {[%emt 0:00:00]} 57. Ke1 {[%emt 0:00:00]} Kd3 {[%emt 0:00:00]} 58. c5 {[%emt 0:00:00]} Bd4 {[%emt 0:00:00]} ({Weaker is} 58... Bxb2 59. cxd6 Bd4 60. Rf8 Rh1+ 61. Rf1 $17) 0-1

[Event "XII Cracow ICC-A 2024"]
[Site "Krakow"]
[Date "2024.06.23"]
[Round "3.2"]
[White "Gumularz, Szymon"]
[Black "Licznerski, Lukasz"]
[Result "1-0"]
[ECO "A29"]
[WhiteElo "2593"]
[BlackElo "2434"]
[Annotator "TA"]
[PlyCount "65"]
[EventDate "2024.06.20"]
[EventType "swiss"]
[EventCountry "POL"]
[SourceTitle "playchess.com"]
[Source "ChessBase"]
[SourceQuality "1"]
[TimeControl "40/5400+30:1800+30"]

{[%evp 19,65,0,15,9,122,120,124,118,130,123,144,134,153,146,177,172,166,129,243,246,248,250,234,251,277,263,249,207,195,191,265,255,264,216,368,359,359,344,620,587,768,745,881,843,789,759,29984,21]} 1. c4 {[%emt 0:00:14]} e5 {[%emt 0:08:57]} 2. g3 {[%emt 0:00:09]} Nf6 {[%emt 0:00:05]} 3. Bg2 {[%emt 0:00:04]} d5 {[%emt 0:00:15]} 4. cxd5 {[%emt 0:00:06]} Nxd5 {[%emt 0:00:05]} 5. Nf3 {[%emt 0:00:05]} Nc6 {[%emt 0:00:21]} 6. O-O {[%emt 0:00:09]} Nb6 {[%emt 0:00:16]} 7. Nc3 {[%emt 0:00:18][%cal Bb1c3,Bc3e4,Be4c5][%mdl 32]} Be7 {[%emt 0:00:05]} 8. b3 {[%emt 0:01:07]} O-O {[%emt 0:00:43]} 9. Bb2 {[%emt 0:00:04]} Re8 {[%emt 0:01:40]} 10. Rc1 {[%emt 0:00:38]} Bf8 {[%emt 0:00:25]} 11. Ne4 {[%emt 0:00:59][%cal Oc1c6]} Nd4 {[%emt 0:05:17]} (11... f6 $11 {keeps the balance.}) 12. Nxd4 $1 $16 {[%emt 0:01:11]} exd4 {[%emt 0:00:04]} 13. e3 {[%emt 0:00:13] White is better.} dxe3 {[%emt 0:21:23]} 14. fxe3 {[%emt 0:00:30] Qh5 is the strong threat.} (14. dxe3 c6 $14) 14... f5 {[%emt 0:05:10] [#]} 15. Nc5 {[%emt 0:01:08]} c6 {[%emt 0:03:22]} 16. b4 {[%emt 0:00:53][%cal Bb3b4,Bb4c5][%mdl 32] White is more active.} Bxc5 {[%emt 0:13:08]} 17. bxc5 {[%emt 0:02:30]} (17. Rxc5 Be6 $16) 17... Nd5 {[%emt 0:01:12]} 18. Qb3 {[%emt 0:00:44]} Re7 {[%emt 0:00:29] [#]} (18... h5 $16 19. Rc4 Qe7) 19. g4 $1 $18 {[%emt 0:02:36][%cal Bg3g4,Bg4f5][%mdl 544]} Be6 {[%emt 0:06:49][%cal Od5f4]} 20. gxf5 {[%emt 0:00:30]} Bf7 {[%emt 0:00:02][%cal Od5f4]} 21. Qc2 {[%emt 0:19:37]} Nf6 {[%emt 0:03:38]} 22. e4 {[%emt 0:02:20] Repels Bd5} Qc7 {[%emt 0:00:25]} 23. Bxf6 {[%emt 0:09:26]} gxf6 {[%emt 0:00:06]} 24. Qc3 {[%emt 0:00:11]} Qe5 {[%emt 0:04:22]} (24... Rf8 $142 25. Rf3 (25. Qxf6 Bc4 $16) 25... Be8) 25. d4 {[%emt 0:00:08]} Qc7 {[%emt 0:00:01]} 26. Qd2 {[%emt 0:12:25]} Rd8 $2 {[%emt 0:02:45]} (26... Rd7 {might work better.} 27. Qh6 Qd8) 27. Rc3 {[%emt 0:03:15] Rg3+ would now be deadly.} Be8 {[%emt 0:02:22]} 28. Qh6 {[%emt 0:00:59]} Rf7 $2 {[%emt 0:00:32]} (28... Rxd4 29. Qxf6 Rdd7 30. Rg3+ Rg7) 29. Rg3+ {[%emt 0:05:35]} Kh8 {[%emt 0:00:13]} 30. Rf4 {[%emt 0:00:16]} Qe7 {[%emt 0:01:08]} 31. Rfg4 {[%emt 0:00:13]} Qf8 {[%emt 0:01:59] [#] Repels Rg8+} 32. e5 $1 {[%emt 0:00:36][%cal Oe5e6] White wants to mate with e6!} fxe5 {[%emt 0:01:59]} (32... Bd7 33. Rg8+) 33. Rg8+ $2 {[%emt 0:00:04][%mdl 32768] Weighted Error Value: White=0.07 (flawless) /Black=0.71.  Mistake:       	---       	Black=5      Inaccurate:     	---       	Black=1      OK:         	White=8     	Black=7      Best:        	White=3     	---        Strong:       	White=1     	---        Brilliant:      	White=1     	---       . Loss on time!?} (33. Qe6 {mates} h6 34. Qxe5+ (34. dxe5 $2 {too greedy.} Qxc5+ 35. Kh1 Rd1+ $19) 34... Kh7 35. Be4 Rf6 36. Rg8 Qxg8 37. Rxg8 (37. Qxf6 Bf7 $18) 37... Kxg8 38. Qxf6) 1-0

[Event "XII Cracow ICC-A 2024"]
[Site "Krakow"]
[Date "2024.06.23"]
[Round "3.3"]
[White "Rozentalis, Eduardas"]
[Black "Suder, Jakub"]
[Result "1-0"]
[ECO "C06"]
[WhiteElo "2476"]
[BlackElo "2328"]
[Annotator "TA"]
[PlyCount "85"]
[EventDate "2024.06.20"]
[EventType "swiss"]
[EventCountry "POL"]
[SourceTitle "playchess.com"]
[Source "ChessBase"]
[SourceQuality "1"]
[TimeControl "40/5400+30:1800+30"]

{[%evp 30,85,16,0,0,0,0,0,0,6,0,0,0,0,28,30,41,41,48,48,84,48,80,47,59,21,33,22,43,43,43,43,98,102,95,95,105,100,216,241,240,240,227,236,224,227,267,251,349,371,546,535,512,530,29990,29991,29991,547]} 1. e4 {[%emt 0:00:03]} e6 {[%emt 0:00:08]} 2. d4 {[%emt 0:00:18]} d5 {[%emt 0:00:05]} 3. Nd2 {[%emt 0:00:12]} Nf6 {[%emt 0:00:12]} 4. e5 {[%emt 0:00:40]} Nfd7 {[%emt 0:00:07]} 5. Bd3 {[%emt 0:00:38]} c5 {[%emt 0:00:06]} 6. c3 {[%emt 0:00:05]} Nc6 {[%emt 0:00:02]} 7. Ne2 {[%emt 0:00:23]} cxd4 {[%emt 0:00:07]} 8. cxd4 {[%emt 0:00:04]} f6 {[%emt 0:00:15]} 9. exf6 {[%emt 0:00:16]} Nxf6 {[%emt 0:00:09]} 10. Nf3 {[%emt 0:00:44]} Bd6 {[%emt 0:00:08]} 11. Bf4 {[%emt 0:02:38]} Bxf4 {[%emt 0:03:20]} 12. Nxf4 {[%emt 0:00:15]} O-O {[%emt 0:00:14]} 13. O-O {[%emt 0:02:37]} Ne4 {[%emt 0:01:19]} 14. Qc1 {[%emt 0:02:40]} Ng5 {[%emt 0:01:34]} 15. Nxg5 {[%emt 0:00:41]} Qxg5 {[%emt 0:00:07] [#]} 16. Bxh7+ $1 {[%emt 0:01:02]} Kxh7 {[%emt 0:00:11]} 17. Nxe6 {[%emt 0:00:04]} Qf5 {[%emt 0:01:51]} 18. Nxf8+ {[%emt 0:00:30]} Qxf8 {[%emt 0:00:05] The position is equal.} 19. Qg5 {[%emt 0:01:19]} Qf5 {[%emt 0:00:06]} 20. Qxf5+ {[%emt 0:03:55]} Bxf5 {[%emt 0:00:12]} 21. Rfe1 {[%emt 0:00:55]} Kg8 {[%emt 0:08:02]} (21... Nxd4 $6 22. Rad1 Nc2 23. Re5 $16) 22. Rad1 {[%emt 0:01:29]} a5 {[%emt 0:02:27]} 23. f3 {[%emt 0:01:11]} Kf7 {[%emt 0:03:05]} 24. g4 {[%emt 0:01:03]} Bh7 {[%emt 0:00:34]} 25. Rd2 {[%emt 0:02:33]} a4 {[%emt 0:03:01]} 26. a3 {[%emt 0:01:21]} Na5 {[%emt 0:06:16]} 27. Rde2 {[%emt 0:04:37]} Nc6 {[%emt 0:00:10] Against Re7+} 28. Kf2 {[%emt 0:02:03]} Ra6 {[%emt 0:04:57]} 29. h4 {[%emt 0:11:13][%cal Bh2h4,Bh4h5][%mdl 32]} Rb6 {[%emt 0:03:44][%cal Ob6b3]} 30. Rd2 {[%emt 0:01:37]} Na5 {[%emt 0:01:14] [#]} (30... g6 $1 $14) 31. Kg3 $1 $16 {[%emt 0:01:35]} Rd6 {[%emt 0:12:28]} 32. Rde2 {[%emt 0:06:34]} Rd7 {[%emt 0:02:08] Against Re7+} 33. h5 {[%emt 0:02:09] aiming for Re8.} Nb3 {[%emt 0:10:11]} (33... Nc6 $16 {was worth a try.}) 34. g5 $18 {[%emt 0:01:22] g6+ is the strong threat.} Nxd4 {[%emt 0:01:49]} 35. g6+ {[%emt 0:02:31]} Bxg6 {[%emt 0:00:40]} 36. hxg6+ {[%emt 0:00:06]} Kxg6 {[%emt 0:00:07][%mdl 4096] Endgame. KRR-KRN} 37. Re8 {[%emt 0:05:24]} Rf7 {[%emt 0:07:45]} 38. f4 {[%emt 0:01:09]} Rc7 {[%emt 0:00:27]} 39. Kg4 {[%emt 0:03:51]} Nb3 {[%emt 0:05:50]} (39... Rc2 {was called for.} 40. Rf8 Kh6 41. Rh1+ Kg6 42. f5+ Nxf5 43. Rxf5 Rg2+ 44. Kh3 Rxb2) 40. Rf8 {[%emt 0:02:33] f5+ would kill now.} Rc4 {[%emt 0:00:38]} 41. Re5 {[%emt 0:31:55]} Rd4 {[%emt 0:34:10]} 42. Rg5+ {[%emt 0:01:38]} Kh7 {[%emt 0:00:07]} 43. Kf5 {Weighted Error Value: White=0.05 (flawless) /Black=0.49.  Mistake:       	---       	Black=3      Inaccurate:     	White=3     	Black=5      OK:         	White=12    	Black=7      Best:        	White=3     	Black=3      Strong:       	White=1     	---} (43. Rf7 $142 Rc4 44. Rgxg7+ (44. Rxb7 Kh6 $18) (44. Rfxg7+ Kh8 45. Kh5 Rc8 46. Kh6 Rc6+ 47. R5g6 Rxg6+ 48. Kxg6 Nc5 49. Rc7 Ne6 50. Rc8+ Nf8+ 51. Rxf8#) 44... Kh6 45. Rh7+ (45. Rxb7 Nc5 $18) 45... Kg6 46. Rfg7+ (46. Rxb7 Rc1 $18) 46... Kf6 47. Rxb7 Kg6 48. Rhd7) 1-0

[Event "XII Cracow ICC-A 2024"]
[Site "Krakow"]
[Date "2024.06.23"]
[Round "3.4"]
[White "Samunenkov, Ihor"]
[Black "Karolczuk, Iwo"]
[Result "1/2-1/2"]
[ECO "E00"]
[WhiteElo "2532"]
[BlackElo "2293"]
[Annotator "TA"]
[PlyCount "109"]
[EventDate "2024.06.20"]
[EventType "swiss"]
[EventCountry "POL"]
[SourceTitle "playchess.com"]
[Source "ChessBase"]
[SourceQuality "1"]
[TimeControl "40/5400+30:1800+30"]

{[%evp 23,109,0,0,0,5,0,33,38,64,47,48,24,24,24,15,11,9,0,-10,-7,85,88,96,92,96,92,87,87,100,101,97,101,100,90,89,90,92,97,92,93,87,91,110,91,91,91,91,91,91,91,91,83,88,88,116,116,116,102,102,102,102,102,116,116,116,103,116,116,115,39,81,0,0,0,0,0,0,0,8,8,8,0,0,0,0,0,0,0]} 1. d4 {[%emt 0:03:38]} Nf6 {[%emt 0:00:11]} 2. c4 {[%emt 0:00:06]} e6 {[%emt 0:00:06]} 3. g3 {[%emt 0:00:06]} d5 {[%emt 0:00:05]} 4. Nf3 {[%emt 0:00:07]} Bb4+ {[%emt 0:00:06]} 5. Bd2 {[%emt 0:00:12][%cal Bc1d2,Bd2f4,Bf4c7][%mdl 32]} Be7 {[%emt 0:00:06]} 6. Bg2 {[%emt 0:00:10]} O-O {[%emt 0:00:10]} 7. O-O {[%emt 0:00:09]} Nbd7 {[%emt 0:00:11]} 8. Qc2 {[%emt 0:00:12]} c6 {[%emt 0:00:31]} 9. Bf4 {[%emt 0:01:47]} b6 {[%emt 0:03:40]} 10. cxd5 {[%emt 0:01:21]} cxd5 {[%emt 0:01:00]} 11. Rc1 {[%emt 0:00:11]} Bb7 {[%emt 0:06:22]} 12. Bc7 {[%emt 0:00:15]} Qe8 {[%emt 0:00:20]} 13. Qb3 {[%emt 0:00:12]} Nb8 {[%emt 0:10:16]} 14. a4 {[%emt 0:09:59]} Na6 {[%emt 0:04:34]} 15. Bf4 {[%emt 0:18:02] White is slightly better.} Ne4 {[%emt 0:13:28]} 16. Nc3 {[%emt 0:06:45][%cal Bb1c3,Bc3b5,Bb5c7][%mdl 32]} Nd6 {[%emt 0:07:49]} 17. Nb5 {[%emt 0:10:16]} Nc4 {[%emt 0:02:34]} 18. Ne5 {[%emt 0:03:23]} Nxe5 {[%emt 0:03:09]} 19. Bxe5 {[%emt 0:00:21]} Qd7 {[%emt 0:09:31] Prevents Nd6.} 20. Nc7 {[%emt 0:12:42] [#] aiming for Qb5.} Rac8 {[%emt 0:00:23][%cal Ra6c7]} 21. Qb5 $36 {[%emt 0:00:14][%mdl 2048] White is pushing.} Qxb5 {[%emt 0:01:05]} (21... Nb8 $11) 22. Nxb5 $16 {[%emt 0:00:10]} Rxc1+ {[%emt 0:15:54]} 23. Rxc1 {[%emt 0:00:06][%cal Oe5d6]} Rc8 {[%emt 0:00:04]} 24. Rxc8+ {[%emt 0:03:02]} Bxc8 {[%emt 0:00:04]} 25. Nxa7 {[%emt 0:00:11] White is more active.} Bd7 {[%emt 0:00:04] [#]} 26. b3 $1 {[%emt 0:00:28]} f6 {[%emt 0:01:16]} 27. Bf4 {[%emt 0:00:11]} g5 {[%emt 0:00:07]} 28. Bc1 {[%emt 0:10:54]} Bd6 {[%emt 0:00:35]} 29. e3 {[%emt 0:00:29]} Bb8 {[%emt 0:00:31]} 30. Nb5 {[%emt 0:00:29]} Bxb5 {[%emt 0:00:20]} 31. axb5 {[%emt 0:00:05][%mdl 4096] Endgame. KBB-KBN} Nc7 {[%emt 0:00:13]} 32. Bf1 {[%emt 0:00:05]} Ne8 {[%emt 0:05:11]} 33. g4 {[%emt 0:02:47]} Kg7 {[%emt 0:04:15]} 34. Bd3 {[%emt 0:01:17]} h5 {[%emt 0:00:52]} 35. h3 {[%emt 0:02:47]} hxg4 {[%emt 0:00:05]} 36. hxg4 {[%emt 0:00:06]} Nd6 {[%emt 0:05:04]} 37. Ba3 {[%emt 0:02:03]} Kf7 {[%emt 0:04:27]} 38. Kg2 {[%emt 0:05:50]} f5 {[%emt 0:01:00]} 39. gxf5 {[%emt 0:06:09]} Nxf5 {[%emt 0:00:13]} 40. Kf3 {[%emt 0:01:46]} Bd6 {[%emt 0:01:20]} 41. Bb2 {[%emt 0:05:44]} Nh6 {[%emt 0:02:49]} 42. Kg2 {[%emt 0:14:20]} Nf5 {[%emt 0:03:13]} 43. Kh3 {[%emt 0:02:00]} Nh6 {[%emt 0:05:37]} 44. Be2 {[%emt 0:01:51]} Kf6 {[%emt 0:00:32]} 45. Bc3 {[%emt 0:01:13]} e5 {[%emt 0:08:39]} 46. Bh5 {[%emt 0:04:18]} ({White should try} 46. dxe5+ $16 Bxe5 47. Bd2) 46... Nf5 {[%emt 0:06:25]} 47. Be8 {[%emt 0:01:13]} (47. Bf3 $16) 47... exd4 $11 {[%emt 0:01:00] The position is equal.} 48. exd4 {[%emt 0:00:05]} Bf4 $1 {[%emt 0:00:49]} 49. Kg4 {[%emt 0:00:35]} Nd6 {[%emt 0:02:35]} 50. Bc6 {[%emt 0:00:49]} Ne4 {[%emt 0:00:17][%csl LRc3,LRf2]} 51. Be1 {[%emt 0:00:06]} Ke6 {[%emt 0:00:31]} 52. b4 {[%emt 0:01:22]} Nf6+ {[%emt 0:03:18]} 53. Kf3 {[%emt 0:00:33]} Kd6 {[%emt 0:00:20]} 54. Ke2 {[%emt 0:01:16]} Ke6 {[%emt 0:00:08]} 55. f3 {[%emt 0:01:00] Weighted Error Value: White=0.08 (flawless) /Black=0.08 (flawless) .  Mistake:       	White=2     	Black=1      Inaccurate:     	---       	Black=4      OK:         	White=19    	Black=23     Best:        	---       	Black=2      Strong:       	White=1     	Black=1} 1/2-1/2

[Event "XII Cracow ICC-A 2024"]
[Site "Krakow"]
[Date "2024.06.23"]
[Round "3.5"]
[White "Apoorv Kamble"]
[Black "Moussard, Jules"]
[Result "1/2-1/2"]
[ECO "B54"]
[WhiteElo "2369"]
[BlackElo "2610"]
[Annotator "TA"]
[PlyCount "101"]
[EventDate "2024.06.20"]
[EventType "swiss"]
[EventCountry "POL"]
[SourceTitle "playchess.com"]
[Source "ChessBase"]
[SourceQuality "1"]
[TimeControl "40/5400+30:1800+30"]

{[%evp 13,101,21,20,28,19,19,30,28,24,28,35,19,21,11,14,0,0,0,0,0,11,7,41,0,0,0,12,0,0,0,0,0,0,0,15,15,13,13,33,21,35,-17,-1,-1,-1,-2,-12,-27,-27,-27,-27,-27,-27,-27,-27,-27,-27,-27,-27,-27,-27,-27,-27,-27,0,0,0,0,0,0,0,0,0,0,0,0,1022,0,919,0,976,0,1071,0,0,0,0,0,0,0]} 1. e4 {[%emt 0:00:01]} c5 {[%emt 0:08:38]} 2. Nf3 {[%emt 0:00:17]} d6 {[%emt 0:00:12]} 3. d4 {[%emt 0:00:17]} cxd4 {[%emt 0:00:12]} 4. Nxd4 {[%emt 0:00:06]} Nf6 {[%emt 0:00:06]} 5. f3 {[%emt 0:03:07]} e5 {[%emt 0:00:32]} 6. Nb3 {[%emt 0:00:04]} Be7 {[%emt 0:00:11]} 7. c4 {[%emt 0:00:06]} a5 {[%emt 0:01:03]} 8. Nc3 {[%emt 0:04:25]} Nc6 {[%emt 0:00:48]} 9. Be3 {[%emt 0:00:24]} Be6 {[%emt 0:04:04]} 10. Be2 {[%emt 0:03:36] White has an edge.} O-O {[%emt 0:05:55]} 11. O-O {[%emt 0:01:44]} Nh5 {[%emt 0:03:00]} 12. Nd5 {[%emt 0:21:06]} Nf4 {[%emt 0:04:08]} 13. Bxf4 {[%emt 0:11:58]} exf4 {[%emt 0:00:18]} 14. Nxe7+ {[%emt 0:05:09]} Qxe7 {[%emt 0:02:26]} 15. Qd2 {[%emt 0:09:05]} Qf6 {[%emt 0:06:12]} 16. Rfd1 {[%emt 0:01:24]} Rfd8 {[%emt 0:01:59]} 17. Nd4 {[%emt 0:02:13]} Qe5 {[%emt 0:11:14]} 18. Rac1 {[%emt 0:01:52][%cal Ba1c1,Bc1c2,Bc2d2,Bd2d4][%mdl 32]} Nxd4 {[%emt 0:00:26]} 19. Qxd4 {[%emt 0:00:05]} Qc5 {[%emt 0:00:27]} 20. Rc2 {[%emt 0:03:19]} Kf8 {[%emt 0:01:33]} 21. Rcd2 {[%emt 0:03:12] [#] And now Qxc5 would win.} Qxd4+ {[%emt 0:01:05]} 22. Rxd4 {[%emt 0:00:05]} Ke7 {[%emt 0:00:03]} 23. a4 {[%emt 0:03:34]} Rac8 {[%emt 0:02:04]} 24. Kf2 {[%emt 0:01:20]} Rc6 {[%emt 0:02:29]} 25. b3 {[%emt 0:07:48]} Rg8 {[%emt 0:00:55]} 26. g3 {[%emt 0:01:35]} g5 {[%emt 0:00:23]} 27. g4 {[%emt 0:05:34]} ({White should play} 27. Rh1 $14) 27... h5 {[%emt 0:00:25]} 28. h3 $1 {[%emt 0:00:01]} (28. gxh5 Rh8 $15) 28... Rh8 {[%emt 0:02:00]} 29. Bf1 {[%emt 0:02:42]} Rb6 {[%emt 0:00:37]} 30. R1d3 {[%emt 0:02:41]} Rc8 {[%emt 0:02:09]} 31. Be2 {[%emt 0:00:41]} Rcc6 {[%emt 0:00:20]} 32. Bd1 {[%emt 0:03:00]} f6 {[%emt 0:03:03]} 33. Kg2 {[%emt 0:02:29]} Rc8 {[%emt 0:00:39]} 34. Kg1 {[%emt 0:00:25]} (34. gxh5 Rh8 35. Rc3 Rc6 $17 (35... Rxh5 36. c5 $15)) 34... Kd7 {[%emt 0:00:19]} 35. Kf2 {[%emt 0:00:47]} Kc7 {[%emt 0:00:08]} 36. Kg1 {[%emt 0:01:44]} Rc6 {[%emt 0:00:18]} 37. Kf2 {[%emt 0:00:22]} (37. gxh5 Rh8 (37... Bxh3 38. Rd5 $15) 38. Be2 Bxh3 $17 (38... Rxh5 39. Bf1 $15)) 37... Rd8 {[%emt 0:00:07]} 38. Ke1 {[%emt 0:00:34]} ({Reject} 38. gxh5 Rh8 39. Be2 (39. h4 gxh4 40. Kg1 Rxh5 $19) 39... Bxh3 $17 (39... Rxh5 $2 40. Bf1 $19)) 38... hxg4 {[%emt 0:03:34]} 39. hxg4 {[%emt 0:00:02]} Rh8 {[%emt 0:00:05]} 40. Kd2 {[%emt 0:00:09]} Rh3 {[%emt 0:01:14]} 41. Kc3 {[%emt 0:30:54]} Kd7 {[%emt 0:30:14]} 42. Kb2 {[%emt 0:00:00]} Ke7 {[%emt 0:00:00]} 43. Rd2 {[%emt 0:00:00]} Rb6 {[%emt 0:00:00]} 44. Ka3 {[%emt 0:00:00]} Rh2 $2 {[%emt 0:00:00][%mdl 8192] [#]} 45. Ka2 $2 {[%emt 0:00:00]} (45. Rxh2 $18 Ra6 46. Rh7+ Bf7 47. Rd5) 45... Rc6 $2 {[%emt 0:00:00][%mdl 8192]} 46. Ka3 $2 {[%emt 0:00:00]} ({White must play} 46. Rxh2 $18 Bg8 47. Kb2) 46... Kd7 $2 {[%emt 0:00:00][%mdl 8192]} 47. Kb2 $2 {[%emt 0:00:00]} ({Only move:} 47. Rxh2 $18 Rc8 48. Rh6) 47... Kc7 $2 {[%emt 0:00:00][%mdl 8192]} 48. R4d3 $2 {[%emt 0:00:00]} (48. Rxh2 $18 Kd8 49. Rh8+ Ke7 50. Rh7+ Bf7 51. Rd5) 48... Rh3 {[%emt 0:00:00] The position is equal.} 49. Ka2 {[%emt 0:00:00]} Rb6 {[%emt 0:00:00]} 50. Kb2 {[%emt 0:00:00]} Rc6 {[%emt 0:00:00]} (50... Bxc4 $2 {is the wrong capture.} 51. Rc3 $18) 51. Ka2 {[%emt 0:00:00] Weighted Error Value: White=0.49/Black=0.07 (flawless) .  Loses game:     	---       	Black=4      Missed win:     	White=1     	---        Mistake:       	White=1     	---        Inaccurate:     	White=1     	Black=2      OK:         	White=14    	Black=8      Best:        	---       	Black=1      Strong:       	White=1     	---} 1/2-1/2